[Event "Titled Tuesday Blitz November 15 Early 2022"]
[White "Goroshkov, Maksym"]
[Black "Rosenberg, Evan S"]
[WhiteFideId "14142716"]
[BlackFideId "2019299"]
[WhiteElo "2257"]
[BlackElo "2367"]
[Result "1/2-1/2"]
[Round "02"]
[TimeControl "180+1"]
[Date "2022.11.16"]
[WhiteClock "0:00:48"]
[BlackClock "0:00:04"]

1. e4 {[%clk 0:02:59]}  e5 {[%clk 0:02:59]} 2. d4 {[%clk 0:02:59]}  exd4 {[%clk 0:02:59]} 3. c3 {[%clk 0:03:00]}  Qe7 {[%clk 0:02:59]} 4. Bd3 {[%clk 0:03:00]}  d5 {[%clk 0:02:57]} 5. Qe2 {[%clk 0:02:53]}  dxe4 {[%clk 0:02:53]} 6. Bxe4 {[%clk 0:02:52]}  Nf6 {[%clk 0:02:52]} 7. Bf3 {[%clk 0:02:51]}  Qxe2+ {[%clk 0:02:51]} 8. Nxe2 {[%clk 0:02:52]}  dxc3 {[%clk 0:02:49]} 9. Nbxc3 {[%clk 0:02:53]}  c6 {[%clk 0:02:50]} 10. Bf4 {[%clk 0:02:50]}  Bc5 {[%clk 0:02:41]} 11. O-O-O {[%clk 0:02:48]}  O-O {[%clk 0:02:42]} 12. Be5 {[%clk 0:02:43]}  Nbd7 {[%clk 0:02:36]} 13. Bg3 {[%clk 0:02:33]}  Nb6 {[%clk 0:02:30]} 14. Bh4 {[%clk 0:02:33]}  Ng4 {[%clk 0:02:22]} 15. Bxg4 {[%clk 0:02:30]}  Bxg4 {[%clk 0:02:22]} 16. f3 {[%clk 0:02:30]}  Be6 {[%clk 0:02:13]} 17. Ne4 {[%clk 0:02:28]}  Be3+ {[%clk 0:02:07]} 18. Kb1 {[%clk 0:02:27]}  Bf5 {[%clk 0:01:52]} 19. Ng3 {[%clk 0:02:25]}  Bg6 {[%clk 0:01:48]} 20. Ka1 {[%clk 0:02:16]}  a5 {[%clk 0:01:23]} 21. Be7 {[%clk 0:02:05]}  Rfe8 {[%clk 0:01:22]} 22. Bc5 {[%clk 0:02:04]}  Bxc5 {[%clk 0:01:16]} 23. Nxc5 {[%clk 0:02:04]}  a4 {[%clk 0:01:14]} 24. Nxb7 {[%clk 0:02:00]}  a3 {[%clk 0:01:13]} 25. bxa3 {[%clk 0:01:59]}  Reb8 {[%clk 0:00:58]} 26. Nc5 {[%clk 0:01:56]}  Rxa3 {[%clk 0:00:52]} 27. Rhe1 {[%clk 0:01:52]}  h5 {[%clk 0:00:51]} 28. Nge4 {[%clk 0:01:50]}  Nd5 {[%clk 0:00:45]} 29. Rd3 {[%clk 0:01:42]}  Ra5 {[%clk 0:00:36]} 30. Rb3 {[%clk 0:01:37]}  Rba8 {[%clk 0:00:32]} 31. Re2 {[%clk 0:01:33]}  Nf4 {[%clk 0:00:24]} 32. Reb2 {[%clk 0:01:33]}  Ne6 {[%clk 0:00:21]} 33. Rb8+ {[%clk 0:01:31]}  Rxb8 {[%clk 0:00:21]} 34. Rxb8+ {[%clk 0:01:32]}  Kh7 {[%clk 0:00:21]} 35. Nxe6 {[%clk 0:01:30]}  fxe6 {[%clk 0:00:21]} 36. Rc8 {[%clk 0:01:25]}  Bxe4 {[%clk 0:00:20]} 37. fxe4 {[%clk 0:01:26]}  Rc5 {[%clk 0:00:19]} 38. Kb2 {[%clk 0:01:25]}  Rc4 {[%clk 0:00:19]} 39. Kb3 {[%clk 0:01:23]}  Rxe4 {[%clk 0:00:19]} 40. Rxc6 {[%clk 0:01:24]}  Re2 {[%clk 0:00:20]} 41. Rc2 {[%clk 0:01:22]}  Re3+ {[%clk 0:00:17]} 42. Kc4 {[%clk 0:01:19]}  Ra3 {[%clk 0:00:16]} 43. Kd4 {[%clk 0:01:19]}  Kg6 {[%clk 0:00:15]} 44. Ke5 {[%clk 0:01:20]}  Re3+ {[%clk 0:00:15]} 45. Kf4 {[%clk 0:01:19]}  Re1 {[%clk 0:00:15]} 46. Kf3 {[%clk 0:01:13]}  Kf5 {[%clk 0:00:13]} 47. Rc5+ {[%clk 0:01:12]}  e5 {[%clk 0:00:13]} 48. Rc7 {[%clk 0:01:10]}  e4+ {[%clk 0:00:13]} 49. Kf2 {[%clk 0:01:10]}  Ra1 {[%clk 0:00:13]} 50. Rc5+ {[%clk 0:01:06]}  Kf4 {[%clk 0:00:10]} 51. g3+ {[%clk 0:01:05]}  Kg4 {[%clk 0:00:10]} 52. Ra5 {[%clk 0:01:06]}  g5 {[%clk 0:00:09]} 53. Ra4 {[%clk 0:00:59]}  Kh3 {[%clk 0:00:07]} 54. Ra5 {[%clk 0:00:48]}  h4 {[%clk 0:00:05]} 55. Rxg5 {[%clk 0:00:46]}  Rxa2+ {[%clk 0:00:05]} 56. Ke3 {[%clk 0:00:47]}  Rxh2 {[%clk 0:00:03]} 57. gxh4 {[%clk 0:00:47]}  Kxh4 {[%clk 0:00:03]} 58. Rg8 {[%clk 0:00:47]}  Rh3+ {[%clk 0:00:03]} 59. Kf4 {[%clk 0:00:45]}  Rf3+ {[%clk 0:00:03]} 60. Kxe4 {[%clk 0:00:46]}  Rf7 {[%clk 0:00:03]} 61. Rh8+ {[%clk 0:00:46]}  Kg5 {[%clk 0:00:03]} 62. Rg8+ {[%clk 0:00:47]}  Kh6 {[%clk 0:00:03]} 63. Rg1 {[%clk 0:00:47]}  Kh5 {[%clk 0:00:03]} 64. Rh1+ {[%clk 0:00:47]}  Kg5 {[%clk 0:00:04]} 65. Ke5 {[%clk 0:00:48]}  Rf2 {[%clk 0:00:03]} 66. Rg1+ {[%clk 0:00:48]}  Kh4 {[%clk 0:00:03]} 67. Ke4 {[%clk 0:00:48]}  Rf7 {[%clk 0:00:03]} 68. Rg8 {[%clk 0:00:48]}  Kh5 {[%clk 0:00:03]} 69. Ke5 {[%clk 0:00:48]}  Kh6 {[%clk 0:00:04]} 70. Rg1 {[%clk 0:00:48]}  Kh5 {[%clk 0:00:04]} 71. Rh1+ {[%clk 0:00:48]}  Kg6 {[%clk 0:00:04]} 72. Rg1+ {[%clk 0:00:48]}  Kh6 {[%clk 0:00:04]} 73. Ke6 {[%clk 0:00:48]}  Rf2 {[%clk 0:00:04]} 1/2-1/2


[Site "https://www.chess.com"]

[Event "Titled Tuesday Blitz November 15 Early 2022"]
[White "Gu, Xiaobing"]
[Black "Lohani, Sujana"]
[WhiteFideId "8602611"]
[BlackFideId "12311987"]
[WhiteElo "2174"]
[BlackElo "1691"]
[Result "1-0"]
[Round "02"]
[TimeControl "180+1"]
[Date "2022.11.16"]
[WhiteClock "0:01:15"]
[BlackClock "0:00:05"]

1. e4 {[%clk 0:02:57]}  c6 {[%clk 0:02:56]} 2. d4 {[%clk 0:02:55]}  d5 {[%clk 0:02:35]} 3. exd5 {[%clk 0:02:53]}  cxd5 {[%clk 0:02:28]} 4. c4 {[%clk 0:02:52]}  e6 {[%clk 0:02:14]} 5. Nc3 {[%clk 0:02:45]}  Nf6 {[%clk 0:01:46]} 6. Bg5 {[%clk 0:02:43]}  Be7 {[%clk 0:01:30]} 7. Nf3 {[%clk 0:02:09]}  O-O {[%clk 0:01:28]} 8. c5 {[%clk 0:02:08]}  Nc6 {[%clk 0:01:22]} 9. Bb5 {[%clk 0:02:06]}  Qc7 {[%clk 0:00:56]} 10. O-O {[%clk 0:02:04]}  b6 {[%clk 0:00:55]} 11. Bxc6 {[%clk 0:02:02]}  Qxc6 {[%clk 0:00:54]} 12. Ne5 {[%clk 0:02:02]}  Qb7 {[%clk 0:00:42]} 13. c6 {[%clk 0:01:56]}  Qa6 {[%clk 0:00:29]} 14. Re1 {[%clk 0:01:51]}  h6 {[%clk 0:00:20]} 15. Bh4 {[%clk 0:01:46]}  Rd8 {[%clk 0:00:19]} 16. Re3 {[%clk 0:01:38]}  Rd6 {[%clk 0:00:17]} 17. Rg3 {[%clk 0:01:37]}  b5 {[%clk 0:00:14]} 18. b4 {[%clk 0:01:28]}  Rxc6 {[%clk 0:00:13]} 19. Nxc6 {[%clk 0:01:27]}  Qxc6 {[%clk 0:00:14]} 20. Rc1 {[%clk 0:01:26]}  Qb6 {[%clk 0:00:12]} 21. Qd2 {[%clk 0:01:17]}  Bd7 {[%clk 0:00:07]} 22. Qxh6 {[%clk 0:01:16]}  Bf8 {[%clk 0:00:05]} 23. Bxf6 {[%clk 0:01:15]} 1-0


[Site "https://www.chess.com"]

[Event "Titled Tuesday Blitz November 15 Early 2022"]
[White "Harsha Bharathakoti"]
[Black "Oro, Faustino"]
[WhiteFideId "5078776"]
[BlackFideId "20000197"]
[WhiteElo "2523"]
[BlackElo "2066"]
[Result "1/2-1/2"]
[Round "02"]
[TimeControl "180+1"]
[Date "2022.11.16"]
[WhiteClock "0:00:04"]
[BlackClock "0:00:08"]

1. e4 {[%clk 0:03:00]}  e5 {[%clk 0:02:57]} 2. Nc3 {[%clk 0:03:00]}  Nf6 {[%clk 0:02:57]} 3. Bc4 {[%clk 0:03:00]}  Bc5 {[%clk 0:02:56]} 4. d3 {[%clk 0:02:59]}  h6 {[%clk 0:02:55]} 5. f4 {[%clk 0:02:59]}  d6 {[%clk 0:02:53]} 6. Nf3 {[%clk 0:02:57]}  Nc6 {[%clk 0:02:52]} 7. f5 {[%clk 0:02:49]}  O-O {[%clk 0:02:47]} 8. Qe2 {[%clk 0:02:27]}  a6 {[%clk 0:02:24]} 9. Be3 {[%clk 0:02:13]}  Bxe3 {[%clk 0:02:23]} 10. Qxe3 {[%clk 0:02:14]}  b5 {[%clk 0:02:22]} 11. Bb3 {[%clk 0:02:11]}  Na5 {[%clk 0:02:14]} 12. O-O {[%clk 0:01:47]}  Bb7 {[%clk 0:02:00]} 13. Ne2 {[%clk 0:01:26]}  Nxb3 {[%clk 0:01:29]} 14. axb3 {[%clk 0:01:25]}  d5 {[%clk 0:01:30]} 15. Ng3 {[%clk 0:01:21]}  Re8 {[%clk 0:01:15]} 16. h3 {[%clk 0:01:01]}  Qd6 {[%clk 0:01:07]} 17. Nd2 {[%clk 0:01:01]}  Rad8 {[%clk 0:00:58]} 18. Rae1 {[%clk 0:00:50]}  c5 {[%clk 0:00:49]} 19. Kh2 {[%clk 0:00:41]}  c4 {[%clk 0:00:40]} 20. dxc4 {[%clk 0:00:24]}  dxc4 {[%clk 0:00:39]} 21. Nf3 {[%clk 0:00:25]}  cxb3 {[%clk 0:00:36]} 22. Qxb3 {[%clk 0:00:26]}  Qc5 {[%clk 0:00:28]} 23. Re3 {[%clk 0:00:26]}  b4 {[%clk 0:00:20]} 24. Rfe1 {[%clk 0:00:24]}  a5 {[%clk 0:00:20]} 25. c3 {[%clk 0:00:24]}  Ba6 {[%clk 0:00:17]} 26. cxb4 {[%clk 0:00:24]}  axb4 {[%clk 0:00:17]} 27. Qa2 {[%clk 0:00:18]}  Bb5 {[%clk 0:00:16]} 28. b3 {[%clk 0:00:17]}  Rd3 {[%clk 0:00:14]} 29. Rxd3 {[%clk 0:00:16]}  Bxd3 {[%clk 0:00:15]} 30. Qd2 {[%clk 0:00:16]}  Qc3 {[%clk 0:00:15]} 31. Re3 {[%clk 0:00:05]}  Qxd2 {[%clk 0:00:12]} 32. Nxd2 {[%clk 0:00:06]}  Rd8 {[%clk 0:00:13]} 33. Nf3 {[%clk 0:00:07]}  Bc2 {[%clk 0:00:11]} 34. Nxe5 {[%clk 0:00:07]}  Re8 {[%clk 0:00:12]} 35. Nc6 {[%clk 0:00:07]}  Nxe4 {[%clk 0:00:05]} 36. Nxb4 {[%clk 0:00:07]}  Bb1 {[%clk 0:00:04]} 37. Nd5 {[%clk 0:00:07]}  Kf8 {[%clk 0:00:03]} 38. Nc3 {[%clk 0:00:02]}  Nxc3 {[%clk 0:00:03]} 39. Rxc3 {[%clk 0:00:03]}  Re1 {[%clk 0:00:03]} 40. b4 {[%clk 0:00:03]}  Ba2 {[%clk 0:00:02]} 41. Ra3 {[%clk 0:00:02]}  Bc4 {[%clk 0:00:02]} 42. Rc3 {[%clk 0:00:02]}  Ba2 {[%clk 0:00:02]} 43. Rc8+ {[%clk 0:00:02]}  Ke7 {[%clk 0:00:02]} 44. Ra8 {[%clk 0:00:03]}  Bc4 {[%clk 0:00:01]} 45. Nh5 {[%clk 0:00:03]}  g6 {[%clk 0:00:01]} 46. Ra7+ {[%clk 0:00:03]}  Kf8 {[%clk 0:00:01]} 47. Ra8+ {[%clk 0:00:02]}  Re8 {[%clk 0:00:01]} 48. Rxe8+ {[%clk 0:00:02]}  Kxe8 {[%clk 0:00:02]} 49. fxg6 {[%clk 0:00:03]}  fxg6 {[%clk 0:00:03]} 50. Nf4 {[%clk 0:00:04]}  Kf7 {[%clk 0:00:04]} 51. Kg3 {[%clk 0:00:04]}  g5 {[%clk 0:00:04]} 52. Nh5 {[%clk 0:00:02]}  Kg6 {[%clk 0:00:05]} 53. Nf4+ {[%clk 0:00:01]}  gxf4+ {[%clk 0:00:05]} 54. Kxf4 {[%clk 0:00:02]}  Kf6 {[%clk 0:00:06]} 55. g4 {[%clk 0:00:03]}  Kg6 {[%clk 0:00:06]} 56. h4 {[%clk 0:00:03]}  Be2 {[%clk 0:00:06]} 57. g5 {[%clk 0:00:02]}  hxg5+ {[%clk 0:00:07]} 58. hxg5 {[%clk 0:00:02]}  Bf1 {[%clk 0:00:08]} 59. b5 {[%clk 0:00:03]}  Bxb5 {[%clk 0:00:08]} 60. Ke5 {[%clk 0:00:04]}  Kxg5 {[%clk 0:00:08]} 1/2-1/2


[Site "https://www.chess.com"]

[Event "Titled Tuesday Blitz November 15 Early 2022"]
[White "Hartikainen, Jarmo"]
[Black "Avila Rodriguez, Joshua Ad"]
[WhiteFideId "503134"]
[BlackFideId "5126444"]
[WhiteElo "2176"]
[BlackElo "2125"]
[Result "1-0"]
[Round "02"]
[TimeControl "180+1"]
[Date "2022.11.16"]
[WhiteClock "0:01:16"]
[BlackClock "0:01:00"]

1. e4 {[%clk 0:03:00]}  c5 {[%clk 0:02:58]} 2. c3 {[%clk 0:03:00]}  Nf6 {[%clk 0:02:58]} 3. e5 {[%clk 0:03:00]}  Nd5 {[%clk 0:02:58]} 4. d4 {[%clk 0:03:00]}  cxd4 {[%clk 0:02:58]} 5. Nf3 {[%clk 0:03:00]}  d6 {[%clk 0:02:59]} 6. cxd4 {[%clk 0:03:00]}  Nc6 {[%clk 0:02:57]} 7. Nc3 {[%clk 0:02:59]}  e6 {[%clk 0:02:53]} 8. Bb5 {[%clk 0:02:37]}  Bd7 {[%clk 0:02:20]} 9. Qe2 {[%clk 0:02:25]}  Nxc3 {[%clk 0:02:18]} 10. bxc3 {[%clk 0:02:24]}  dxe5 {[%clk 0:02:18]} 11. dxe5 {[%clk 0:02:14]}  Be7 {[%clk 0:02:11]} 12. O-O {[%clk 0:02:13]}  O-O {[%clk 0:02:11]} 13. Bf4 {[%clk 0:02:06]}  Qc7 {[%clk 0:01:51]} 14. Rfd1 {[%clk 0:01:57]}  Rfd8 {[%clk 0:01:50]} 15. Bd3 {[%clk 0:01:53]}  Na5 {[%clk 0:01:41]} 16. Ng5 {[%clk 0:01:42]}  Bxg5 {[%clk 0:01:40]} 17. Bxg5 {[%clk 0:01:42]}  Re8 {[%clk 0:01:23]} 18. Qh5 {[%clk 0:01:40]}  g6 {[%clk 0:01:22]} 19. Qh6 {[%clk 0:01:38]}  Qxe5 {[%clk 0:01:22]} 20. Qh4 {[%clk 0:01:23]}  Qg7 {[%clk 0:01:08]} 21. Bf6 {[%clk 0:01:20]}  Qf8 {[%clk 0:01:08]} 22. Bxg6 {[%clk 0:01:16]}  fxg6 {[%clk 0:01:00]} 23. Rxd7 {[%clk 0:01:16]} 1-0


[Site "https://www.chess.com"]

[Event "Titled Tuesday Blitz November 15 Early 2022"]
[White "Hoffmann, Asa"]
[Black "Fernandez Guillen, Ernesto J."]
[WhiteFideId "2001470"]
[BlackFideId "3512428"]
[WhiteElo "2117"]
[BlackElo "2450"]
[Result "0-1"]
[Round "02"]
[TimeControl "180+1"]
[Date "2022.11.16"]
[WhiteClock "0:00:04"]
[BlackClock "0:00:07"]

1. d4 {[%clk 0:02:58]}  Nf6 {[%clk 0:02:59]} 2. Bg5 {[%clk 0:02:54]}  g6 {[%clk 0:02:58]} 3. Nc3 {[%clk 0:02:53]}  d5 {[%clk 0:02:58]} 4. f3 {[%clk 0:02:53]}  Bg7 {[%clk 0:02:55]} 5. e4 {[%clk 0:02:52]}  dxe4 {[%clk 0:02:55]} 6. fxe4 {[%clk 0:02:52]}  O-O {[%clk 0:02:55]} 7. Nf3 {[%clk 0:02:52]}  c5 {[%clk 0:02:48]} 8. d5 {[%clk 0:02:51]}  Qa5 {[%clk 0:02:40]} 9. Qd2 {[%clk 0:02:50]}  Bg4 {[%clk 0:02:37]} 10. Be2 {[%clk 0:02:50]}  Qb4 {[%clk 0:02:13]} 11. e5 {[%clk 0:02:41]}  Nxd5 {[%clk 0:01:24]} 12. Nxd5 {[%clk 0:02:24]}  Qxb2 {[%clk 0:01:24]} 13. O-O {[%clk 0:02:06]}  Nc6 {[%clk 0:01:24]} 14. Rab1 {[%clk 0:01:57]}  Qxa2 {[%clk 0:01:23]} 15. Nxe7+ {[%clk 0:01:40]}  Nxe7 {[%clk 0:01:15]} 16. Bxe7 {[%clk 0:01:40]}  Rfe8 {[%clk 0:01:16]} 17. Bxc5 {[%clk 0:01:29]}  b6 {[%clk 0:01:07]} 18. Bd6 {[%clk 0:01:29]}  Rad8 {[%clk 0:01:02]} 19. Qf4 {[%clk 0:01:24]}  Be6 {[%clk 0:00:56]} 20. Bd3 {[%clk 0:01:17]}  Qd5 {[%clk 0:00:50]} 21. Kh1 {[%clk 0:01:08]}  h6 {[%clk 0:00:49]} 22. Rfd1 {[%clk 0:01:06]}  Qa5 {[%clk 0:00:39]} 23. Bb5 {[%clk 0:01:04]}  g5 {[%clk 0:00:33]} 24. Qa4 {[%clk 0:01:02]}  Qxa4 {[%clk 0:00:33]} 25. Bxa4 {[%clk 0:01:02]}  Bd7 {[%clk 0:00:34]} 26. Bb3 {[%clk 0:00:58]}  Rc8 {[%clk 0:00:31]} 27. Re1 {[%clk 0:00:56]}  Be6 {[%clk 0:00:27]} 28. Nd4 {[%clk 0:00:54]}  Bxb3 {[%clk 0:00:22]} 29. cxb3 {[%clk 0:00:52]}  Rc3 {[%clk 0:00:14]} 30. Nf5 {[%clk 0:00:51]}  Rd3 {[%clk 0:00:14]} 31. Nxg7 {[%clk 0:00:48]}  Kxg7 {[%clk 0:00:15]} 32. b4 {[%clk 0:00:47]}  a6 {[%clk 0:00:14]} 33. Ra1 {[%clk 0:00:44]}  a5 {[%clk 0:00:14]} 34. bxa5 {[%clk 0:00:44]}  bxa5 {[%clk 0:00:15]} 35. Red1 {[%clk 0:00:42]}  Rxd1+ {[%clk 0:00:12]} 36. Rxd1 {[%clk 0:00:42]}  a4 {[%clk 0:00:13]} 37. Ra1 {[%clk 0:00:41]}  Ra8 {[%clk 0:00:14]} 38. g4 {[%clk 0:00:41]}  Kg6 {[%clk 0:00:15]} 39. Kg2 {[%clk 0:00:41]}  f5 {[%clk 0:00:15]} 40. h3 {[%clk 0:00:36]}  h5 {[%clk 0:00:14]} 41. Kf3 {[%clk 0:00:35]}  fxg4+ {[%clk 0:00:14]} 42. hxg4 {[%clk 0:00:35]}  h4 {[%clk 0:00:15]} 43. Ra3 {[%clk 0:00:33]}  Kf7 {[%clk 0:00:15]} 44. Ke4 {[%clk 0:00:31]}  Ke6 {[%clk 0:00:15]} 45. Bc5 {[%clk 0:00:27]}  Ra5 {[%clk 0:00:14]} 46. Bd4 {[%clk 0:00:27]}  Ra8 {[%clk 0:00:13]} 47. Rf3 {[%clk 0:00:25]}  a3 {[%clk 0:00:13]} 48. Rf6+ {[%clk 0:00:25]}  Kd7 {[%clk 0:00:13]} 49. Rg6 {[%clk 0:00:25]}  a2 {[%clk 0:00:14]} 50. Rxg5 {[%clk 0:00:25]}  Ra4 {[%clk 0:00:13]} 51. Rg7+ {[%clk 0:00:22]}  Ke6 {[%clk 0:00:13]} 52. Rg6+ {[%clk 0:00:22]}  Kf7 {[%clk 0:00:13]} 53. Rf6+ {[%clk 0:00:22]}  Ke7 {[%clk 0:00:12]} 54. Rf1 {[%clk 0:00:14]}  h3 {[%clk 0:00:12]} 55. Kf5 {[%clk 0:00:08]}  Rxd4 {[%clk 0:00:11]} 56. g5 {[%clk 0:00:07]}  h2 {[%clk 0:00:11]} 57. g6 {[%clk 0:00:07]}  Ra4 {[%clk 0:00:06]} 58. g7 {[%clk 0:00:05]}  Kf7 {[%clk 0:00:07]} 59. e6+ {[%clk 0:00:04]}  Kxg7 {[%clk 0:00:08]} 60. e7 {[%clk 0:00:04]}  Kf7 {[%clk 0:00:07]} 0-1


[Site "https://www.chess.com"]

[Event "Titled Tuesday Blitz November 15 Early 2022"]
[White "Ilkhomi, Jaloliddin"]
[Black "Nissinen, Niilo Man"]
[WhiteFideId "14700948"]
[BlackFideId "30950767"]
[WhiteElo "2045"]
[BlackElo "1896"]
[Result "1-0"]
[Round "02"]
[TimeControl "180+1"]
[Date "2022.11.16"]
[WhiteClock "0:01:23"]
[BlackClock "0:00:01"]

1. d4 {[%clk 0:03:00]}  Nf6 {[%clk 0:02:59]} 2. Nf3 {[%clk 0:03:01]}  g6 {[%clk 0:02:59]} 3. Bg5 {[%clk 0:03:00]}  Bg7 {[%clk 0:02:59]} 4. c3 {[%clk 0:03:01]}  O-O {[%clk 0:02:55]} 5. Nbd2 {[%clk 0:03:01]}  d5 {[%clk 0:02:52]} 6. e3 {[%clk 0:03:02]}  h6 {[%clk 0:02:44]} 7. Bh4 {[%clk 0:02:59]}  Bf5 {[%clk 0:02:44]} 8. Ne5 {[%clk 0:02:56]}  Nbd7 {[%clk 0:02:33]} 9. Bg3 {[%clk 0:02:55]}  Nxe5 {[%clk 0:02:29]} 10. Bxe5 {[%clk 0:02:56]}  h5 {[%clk 0:02:23]} 11. Nf3 {[%clk 0:02:54]}  c6 {[%clk 0:02:20]} 12. Bd3 {[%clk 0:02:54]}  Bxd3 {[%clk 0:02:19]} 13. Qxd3 {[%clk 0:02:54]}  Qb6 {[%clk 0:02:19]} 14. Qc2 {[%clk 0:02:48]}  Ne4 {[%clk 0:02:11]} 15. Bxg7 {[%clk 0:02:43]}  Kxg7 {[%clk 0:02:12]} 16. O-O {[%clk 0:02:43]}  Rac8 {[%clk 0:02:10]} 17. Nd2 {[%clk 0:02:42]}  Nxd2 {[%clk 0:02:07]} 18. Qxd2 {[%clk 0:02:43]}  c5 {[%clk 0:02:07]} 19. Rfd1 {[%clk 0:02:43]}  cxd4 {[%clk 0:01:46]} 20. exd4 {[%clk 0:02:44]}  e6 {[%clk 0:01:40]} 21. Re1 {[%clk 0:02:43]}  Qd6 {[%clk 0:01:39]} 22. h3 {[%clk 0:02:40]}  b5 {[%clk 0:01:38]} 23. Re3 {[%clk 0:02:33]}  a5 {[%clk 0:01:34]} 24. Rc1 {[%clk 0:02:32]}  b4 {[%clk 0:01:31]} 25. cxb4 {[%clk 0:02:32]}  Qxb4 {[%clk 0:01:17]} 26. Rec3 {[%clk 0:02:30]}  Rxc3 {[%clk 0:01:13]} 27. Qxc3 {[%clk 0:02:21]}  Rb8 {[%clk 0:01:13]} 28. b3 {[%clk 0:02:15]}  a4 {[%clk 0:00:52]} 29. bxa4 {[%clk 0:01:50]}  Qxa4 {[%clk 0:00:51]} 30. Qe3 {[%clk 0:01:49]}  Ra8 {[%clk 0:00:36]} 31. Rc7 {[%clk 0:01:42]}  Qxa2 {[%clk 0:00:11]} 32. Qxe6 {[%clk 0:01:39]}  Rf8 {[%clk 0:00:02]} 33. Qe5+ {[%clk 0:01:38]}  Kg8 {[%clk 0:00:02]} 34. Rc5 {[%clk 0:01:36]}  Qb1+ {[%clk 0:00:02]} 35. Kh2 {[%clk 0:01:36]}  Qe4 {[%clk 0:00:02]} 36. Rxd5 {[%clk 0:01:33]}  Qxe5+ {[%clk 0:00:01]} 37. Rxe5 {[%clk 0:01:32]}  Rd8 {[%clk 0:00:01]} 38. d5 {[%clk 0:01:32]}  Kg7 {[%clk 0:00:02]} 39. Kg3 {[%clk 0:01:26]}  Kf6 {[%clk 0:00:02]} 40. Kf4 {[%clk 0:01:24]}  Ra8 {[%clk 0:00:02]} 41. Re3 {[%clk 0:01:23]}  Rd8 {[%clk 0:00:02]} 42. Rd3 {[%clk 0:01:23]}  Rd6 {[%clk 0:00:02]} 43. Ke4 {[%clk 0:01:23]}  Ke7 {[%clk 0:00:01]} 44. f4 {[%clk 0:01:22]}  Kf6 {[%clk 0:00:01]} 45. g4 {[%clk 0:01:22]}  hxg4 {[%clk 0:00:01]} 46. hxg4 {[%clk 0:01:23]}  Rd7 {[%clk 0:00:01]} 47. Ra3 {[%clk 0:01:23]}  Rd6 {[%clk 0:00:01]} 48. Ra7 {[%clk 0:01:23]}  Rb6 {[%clk 0:00:02]} 49. g5+ {[%clk 0:01:22]}  Kg7 {[%clk 0:00:01]} 50. Ke5 {[%clk 0:01:23]}  Kf8 {[%clk 0:00:01]} 51. d6 {[%clk 0:01:23]} 1-0


[Site "https://www.chess.com"]

[Event "Titled Tuesday Blitz November 15 Early 2022"]
[White "Ince, Taylan Ruzgar"]
[Black "Jumabayev, Rinat"]
[WhiteFideId "44513089"]
[BlackFideId "13702661"]
[WhiteElo "2147"]
[BlackElo "2561"]
[Result "1-0"]
[Round "02"]
[TimeControl "180+1"]
[Date "2022.11.16"]
[WhiteClock "0:00:25"]
[BlackClock "0:00:06"]

1. Nf3 {[%clk 0:03:00]}  Nf6 {[%clk 0:02:59]} 2. d4 {[%clk 0:03:01]}  g6 {[%clk 0:03:00]} 3. g3 {[%clk 0:03:01]}  Bg7 {[%clk 0:02:59]} 4. Bg2 {[%clk 0:03:01]}  c5 {[%clk 0:03:00]} 5. O-O {[%clk 0:03:00]}  cxd4 {[%clk 0:02:58]} 6. Nxd4 {[%clk 0:03:00]}  Nc6 {[%clk 0:02:58]} 7. c4 {[%clk 0:03:00]}  O-O {[%clk 0:02:57]} 8. Nc3 {[%clk 0:03:00]}  Qa5 {[%clk 0:02:58]} 9. Nb3 {[%clk 0:02:53]}  Qh5 {[%clk 0:02:58]} 10. e4 {[%clk 0:02:52]}  d6 {[%clk 0:02:55]} 11. Qxh5 {[%clk 0:02:51]}  Nxh5 {[%clk 0:02:56]} 12. Nd5 {[%clk 0:02:42]}  Rd8 {[%clk 0:02:56]} 13. Rb1 {[%clk 0:02:38]}  Be6 {[%clk 0:02:45]} 14. Be3 {[%clk 0:02:29]}  Rac8 {[%clk 0:02:39]} 15. h3 {[%clk 0:02:06]}  b6 {[%clk 0:02:37]} 16. Rfc1 {[%clk 0:02:02]}  Kf8 {[%clk 0:02:34]} 17. Bf1 {[%clk 0:01:59]}  Nf6 {[%clk 0:02:30]} 18. Nxf6 {[%clk 0:01:58]}  Bxf6 {[%clk 0:02:30]} 19. Nd2 {[%clk 0:01:57]}  h5 {[%clk 0:01:59]} 20. b3 {[%clk 0:01:56]}  g5 {[%clk 0:01:49]} 21. f4 {[%clk 0:01:44]}  gxf4 {[%clk 0:01:43]} 22. gxf4 {[%clk 0:01:45]}  Nb4 {[%clk 0:01:33]} 23. a3 {[%clk 0:01:35]}  Nc6 {[%clk 0:01:29]} 24. Nf3 {[%clk 0:01:34]}  Bd7 {[%clk 0:01:11]} 25. Kf2 {[%clk 0:01:33]}  e5 {[%clk 0:01:11]} 26. Rd1 {[%clk 0:01:22]}  Ke7 {[%clk 0:01:11]} 27. f5 {[%clk 0:01:20]}  Rg8 {[%clk 0:01:07]} 28. Be2 {[%clk 0:01:20]}  h4 {[%clk 0:01:03]} 29. Rg1 {[%clk 0:01:19]}  Rxg1 {[%clk 0:01:01]} 30. Rxg1 {[%clk 0:01:15]}  Na5 {[%clk 0:01:01]} 31. Nd2 {[%clk 0:01:14]}  Nc6 {[%clk 0:00:52]} 32. Bg5 {[%clk 0:01:06]}  Nd4 {[%clk 0:00:49]} 33. Bxf6+ {[%clk 0:00:59]}  Kxf6 {[%clk 0:00:50]} 34. a4 {[%clk 0:00:50]}  a6 {[%clk 0:00:49]} 35. Bd3 {[%clk 0:00:48]}  b5 {[%clk 0:00:49]} 36. axb5 {[%clk 0:00:47]}  axb5 {[%clk 0:00:49]} 37. Rg4 {[%clk 0:00:47]}  Rh8 {[%clk 0:00:36]} 38. cxb5 {[%clk 0:00:41]}  Bxb5 {[%clk 0:00:23]} 39. Bxb5 {[%clk 0:00:41]}  Nxb5 {[%clk 0:00:24]} 40. Nc4 {[%clk 0:00:39]}  Ke7 {[%clk 0:00:20]} 41. Ne3 {[%clk 0:00:37]}  Nc3 {[%clk 0:00:20]} 42. Ke1 {[%clk 0:00:36]}  Rb8 {[%clk 0:00:20]} 43. Kd2 {[%clk 0:00:35]}  Rxb3 {[%clk 0:00:21]} 44. Kc2 {[%clk 0:00:35]}  Ra3 {[%clk 0:00:21]} 45. Nc4 {[%clk 0:00:31]}  Nb5 {[%clk 0:00:12]} 46. Nxa3 {[%clk 0:00:28]}  Nxa3+ {[%clk 0:00:13]} 47. Kd3 {[%clk 0:00:27]}  Nb5 {[%clk 0:00:12]} 48. Rxh4 {[%clk 0:00:28]}  Nd4 {[%clk 0:00:13]} 49. Rg4 {[%clk 0:00:27]}  d5 {[%clk 0:00:05]} 50. h4 {[%clk 0:00:27]}  Nxf5 {[%clk 0:00:06]} 51. exf5 {[%clk 0:00:25]} 1-0


[Site "https://www.chess.com"]